bitfinex/quotes_BTCUSD_20250406
["timestamp","ask_amount","ask_price","bid_price","bid_amount"]
[1743977465922,0.0455,79018.0,79017.0,0.40320882]
[1743977466258,0.0456,79035.0,79034.0,0.265707]
[1743977466465,0.0456,79035.0,79034.0,0.38860997]
[1743977466668,0.0457,79046.0,79044.0,0.253023]
[1743977466881,0.025,79043.0,79004.0,0.03905958]
[1743977467057,0.025,79017.0,79006.0,0.012657]
[1743977467259,0.31068,79016.0,79009.0,0.253133]
[1743977467457,0.28568,79016.0,79015.0,0.012655]
[1743977467636,0.28568,79016.0,79015.0,0.15009882]
[1743977467855,0.28568,79016.0,79015.0,0.2688903]
[1743977468053,0.28568,79016.0,79015.0,0.15009882]
[1743977468494,0.025,79037.0,79024.0,0.265738]
[1743977468696,0.0456,79050.0,79034.0,0.40315082]
[1743977468899,0.00013558,79035.0,79034.0,0.40315082]
[1743977469164,0.00013558,79035.0,78990.0,0.50638]
[1743977469282,0.005,79017.0,79016.0,0.02719585]
[1743977469491,0.005,79017.0,79016.0,0.40320982]
[1743977470114,0.28564,79028.0,79016.0,0.12290297]
[1743977470318,0.28564,79028.0,79018.0,0.01454085]
[1743977470519,0.02960816,79027.0,79019.0,0.12290297]
[1743977470927,0.02960816,79027.0,79025.0,0.01454085]
[1743977471129,0.02960816,79027.0,79026.0,0.12290297]
[1743977471613,0.00513558,79035.0,79027.0,0.01454085]
[1743977471889,0.02960816,79034.0,79029.0,0.01454085]
[1743977472093,0.02960816,79034.0,79031.0,0.01454085]
[1743977472300,0.00013558,79035.0,79033.0,0.01454085]
[1743977472471,0.00013558,79035.0,79034.0,0.12290297]
[1743977473197,0.00013558,79035.0,79034.0,0.13664735]
[1743977473425,0.00013558,79035.0,79034.0,0.15371835]
[1743977473624,0.00513558,79035.0,79034.0,0.1638402]
[1743977473798,0.00013558,79035.0,79034.0,0.1511882]
[1743977474206,0.00013558,79035.0,79034.0,0.13744382]
[1743977474371,0.00013558,79035.0,79034.0,0.12290297]
[1743977474801,0.00513558,79035.0,79034.0,0.12390297]
[1743977475025,0.01013558,79035.0,79034.0,0.12390297]
[1743977475430,0.00513558,79035.0,79034.0,0.12390297]
[1743977475839,0.01013558,79035.0,79034.0,0.12390297]
[1743977476515,0.01013558,79035.0,79034.0,0.15109582]
[1743977476719,0.01013558,79035.0,79034.0,0.13844382]
[1743977478376,0.03513558,79035.0,79034.0,0.001]
[1743977478784,0.06474374,79035.0,79034.0,0.001]
[1743977479000,0.08791787,79035.0,79034.0,0.001]
[1743977479123,0.025,79030.0,79011.0,0.01454085]
[1743977479328,0.025,79030.0,79017.0,0.01454085]
[1743977479521,0.06291787,79035.0,79019.0,0.01454085]
[1743977479522,0.07789605,79029.0,79019.0,0.01454085]
[1743977479782,0.04817413,79029.0,79021.0,0.01454085]
[1743977479928,0.02317413,79028.0,79023.0,0.01454085]
[1743977480130,0.05289605,79028.0,79025.0,0.01454085]
[1743977480334,0.05289605,79028.0,78970.0,1.09448]
[1743977480538,0.05289605,79028.0,78994.0,0.12290297]
[1743977480539,0.025,79005.0,78994.0,0.12290297]
[1743977480777,0.025,79005.0,78972.0,0.10968146]
[1743977480778,0.07057413,79027.0,79002.0,0.012657]
[1743977480990,0.02972192,79026.0,79019.0,0.012655]
[1743977481192,0.61136602,79030.0,79020.0,0.12290297]
[1743977481391,0.025,79019.0,78997.0,0.265828]
[1743977481611,0.02327064,79018.0,79005.0,0.01454085]
[1743977481830,0.02327064,79018.0,79006.0,0.12290297]
[1743977481990,0.365,79019.0,78960.0,0.506583]
[1743977481991,0.025,79009.0,78985.0,0.253212]
[1743977482208,0.30803064,79008.0,78992.0,0.265846]
[1743977482391,0.30803064,79008.0,78993.0,0.12290297]
[1743977482392,0.025,78999.0,78993.0,0.12290297]
[1743977482619,0.04827064,79007.0,78994.0,0.0122903]
[1743977482819,0.025,79031.0,79018.0,0.012655]
[1743977483021,0.025,79031.0,78994.0,0.0122903]
[1743977483022,0.0492,79047.0,79035.0,0.012652]
[1743977483376,0.0232969,79046.0,79045.0,0.28021185]
[1743977483553,0.0232969,79046.0,79045.0,0.40311482]
[1743977483786,0.0232969,79046.0,79045.0,0.13744382]
[1743977484397,0.0232969,79046.0,79045.0,0.39046382]
[1743977484605,0.0232969,79046.0,79045.0,0.40311482]
[1743977484833,0.0282969,79046.0,79045.0,0.40311482]
[1743977485041,0.0001673,79061.0,79059.0,0.252975]
[1743977485042,0.00901062,79060.0,79059.0,0.252975]
[1743977485246,0.00901062,79060.0,79059.0,0.77089412]
[1743977485657,0.0001673,79061.0,79060.0,0.36718885]
[1743977485861,0.0001673,79061.0,79060.0,0.13744382]
[1743977486086,0.0001673,79061.0,79060.0,0.40306382]
[1743977486302,0.0001673,79061.0,79060.0,0.13744382]
[1743977487663,0.0001673,79061.0,79031.0,0.012653]
[1743977487664,0.0251673,79061.0,79031.0,0.012653]
[1743977487909,0.025,79053.0,79043.0,0.12290297]
[1743977488110,0.025,79042.0,79032.0,0.12290297]
[1743977488354,0.025,79034.0,79026.0,0.0004526]
[1743977488560,0.025,79027.0,79026.0,0.12335557]
[1743977488765,0.025,79027.0,79001.0,0.002]
[1743977488766,0.025,79018.0,79001.0,0.002]
[1743977488968,0.0976,79027.0,79001.0,0.002]
[1743977488969,0.025,79008.0,79001.0,0.002]
[1743977489159,0.60636602,79011.0,79002.0,0.12543417]
[1743977489160,0.28572,79007.0,79002.0,0.12543417]
[1743977489363,0.31557162,79007.0,79002.0,0.12290297]
[1743977490059,0.02985162,79007.0,79006.0,0.012657]
[1743977490265,0.09805167,79027.0,79013.0,0.012656]
[1743977490556,0.02985162,79026.0,79020.0,0.01454085]
[1743977490797,0.025,79017.0,78991.0,0.012659]
[1743977491000,0.025,78998.0,78971.0,0.002]
[1743977491204,0.0481,79006.0,78999.0,0.253167]
[1743977491483,0.0481,79006.0,79000.0,0.16810507]
[1743977491682,0.4131,79006.0,78997.0,0.050634]
[1743977491933,0.025,78999.0,78997.0,0.050634]
[1743977492363,0.025,78998.0,78997.0,0.050634]
[1743977493318,0.025,79003.0,78997.0,0.17353697]
[1743977493533,0.025,79002.0,78998.0,0.14025667]
[1743977493949,0.025,79002.0,78997.0,0.050634]
[1743977494365,0.005,78999.0,78998.0,0.12290297]
[1743977494516,0.025,79005.0,78998.0,0.12290297]
[1743977494724,0.05455139,79006.0,78998.0,0.12543439]
[1743977494933,0.05455139,79006.0,78999.0,0.02719885]
[1743977494934,0.005,79002.0,78999.0,0.02719885]
[1743977495139,0.28344,79005.0,79001.0,0.01454085]
[1743977495339,0.006,79002.0,78997.0,0.050634]
[1743977495542,0.005,78999.0,78998.0,0.12290297]
[1743977495740,0.34,79004.0,78998.0,0.12290297]
[1743977495945,0.025,78998.0,78997.0,0.050634]
[1743977496151,0.025,78980.0,78941.0,0.002]
[1743977496356,0.025,78972.0,78941.0,0.002]
[1743977496553,0.34,78971.0,78941.0,0.002]
[1743977496762,0.025,78948.0,78942.0,0.12290297]
[1743977496961,0.30724,78948.0,78942.0,0.12290297]
[1743977497604,0.28224,78948.0,78942.0,0.00013563]
[1743977497780,0.025,78943.0,78942.0,0.00013563]
[1743977498266,0.025,78923.0,78921.0,0.0003332]
[1743977498476,0.28112,78922.0,78921.0,0.00046884]
[1743977498892,0.30612,78922.0,78921.0,0.00046884]
[1743977499099,0.33647008,78922.0,78921.0,0.00046884]
[1743977499309,0.36716568,78922.0,78921.0,0.00046884]
[1743977499529,1.15406,78943.0,78936.0,0.012668]
[1743977499755,1.15406,78943.0,78941.0,0.01454085]
[1743977499756,0.011,78943.0,78941.0,0.01454085]
[1743977500036,0.011,78943.0,78942.0,0.40346082]
[1743977500856,0.005,78943.0,78942.0,0.40346082]
[1743977501079,1.09476,78967.0,78963.0,0.012664]
[1743977501299,0.65546602,78980.0,78967.0,0.012663]
[1743977501467,0.65546602,78980.0,78967.0,0.15010682]
[1743977501681,0.65546602,78980.0,78968.0,0.26593]
[1743977501895,0.65546602,78980.0,78967.0,0.15010682]
[1743977501896,0.0484,78995.0,78988.0,0.01454085]
[1743977502101,0.0051673,79034.0,78988.0,0.15263547]
[1743977502102,0.0487,79014.0,78988.0,0.15263547]
[1743977502320,0.0487,79014.0,78988.0,0.15010382]
[1743977502522,0.0487,79014.0,78988.0,0.49010382]
[1743977502729,0.2792,79023.0,78988.0,0.5935544]
[1743977502929,0.10997656,79016.0,79015.0,0.265771]
[1743977503132,0.10997656,79016.0,79015.0,0.40321482]
[1743977503558,0.10997656,79016.0,79015.0,0.13744382]
[1743977503761,0.10997656,79016.0,79015.0,0.1790314]
[1743977503961,0.10997656,79016.0,79015.0,0.12290297]
[1743977504132,0.10997656,79016.0,78995.0,0.01454085]
[1743977504335,0.30344,79015.0,78998.0,0.01454085]
[1743977504551,0.025,79007.0,78999.0,0.12290297]
[1743977504870,0.60636602,79010.0,78999.0,0.13519327]
[1743977505009,0.60636602,79010.0,78999.0,0.12290297]
[1743977505209,0.63136602,79010.0,78999.0,0.12290297]
[1743977505659,0.02890983,79009.0,79008.0,0.01454085]
[1743977505861,0.28444,79015.0,79009.0,0.01454085]
[1743977506013,0.02890983,79014.0,79010.0,0.12290297]
[1743977506217,0.02890983,79014.0,79013.0,0.02719685]
[1743977506439,0.02890983,79014.0,79013.0,0.15009982]
[1743977506644,0.27836,79027.0,79018.0,0.265761]
[1743977507032,0.65506602,79030.0,79018.0,0.49813479]
[1743977507235,0.0476,79048.0,79018.0,0.83813479]
[1743977507981,0.002,79049.0,79033.0,0.60571]
[1743977507982,6e-08,79034.0,79033.0,0.60571]
[1743977508202,0.00013549,79034.0,79033.0,0.74315382]
[1743977508406,0.00013549,79034.0,79033.0,0.8199998]
[1743977509010,0.00013549,79034.0,79033.0,0.2269418]
[1743977509390,0.00013549,79034.0,79033.0,0.5669418]
[1743977509800,0.00613549,79034.0,79033.0,0.5669418]
[1743977510261,0.01113549,79034.0,79033.0,0.5669418]
[1743977510997,0.01113549,79034.0,79033.0,0.2269418]
[1743977511197,0.00513549,79034.0,79033.0,0.2269418]
[1743977511396,0.01113549,79034.0,79033.0,0.2269418]
[1743977512060,0.00013549,79034.0,79033.0,0.2269418]
[1743977512295,0.00513549,79034.0,79033.0,0.22947134]
[1743977512511,0.006,79034.0,79033.0,0.2269418]
[1743977512921,0.011,79034.0,79033.0,0.22947126]
[1743977513128,0.0001673,79046.0,79045.0,0.265671]
[1743977513335,0.0001673,79046.0,79045.0,0.48116113]
[1743977515155,0.0061673,79046.0,79045.0,0.48116113]
[1743977515361,0.0061673,79046.0,79045.0,0.82116113]
[1743977515575,0.0111673,79046.0,79045.0,0.82116113]
[1743977515776,0.0472,79100.0,79066.0,0.012647]
[1743977515923,0.0251673,79099.0,79066.0,0.74557213]
[1743977516125,0.00030283,79067.0,79066.0,0.74304382]
[1743977516331,0.00030283,79067.0,79066.0,0.12290297]
[1743977516508,0.00030283,79067.0,79066.0,0.13519327]
[1743977516709,0.00030283,79067.0,79066.0,0.16238112]
[1743977517112,0.00030283,79067.0,79066.0,0.16790978]
[1743977517338,0.00030283,79067.0,79066.0,0.16538112]
[1743977517567,0.00030283,79067.0,79066.0,0.16790985]
[1743977517750,0.00030283,79067.0,79066.0,0.16538112]
[1743977517951,0.00030283,79067.0,79066.0,0.12420592]
[1743977518337,0.00030283,79067.0,79066.0,0.51402363]
[1743977518562,0.00130283,79067.0,79066.0,0.82741577]
[1743977518769,0.00630283,79067.0,79066.0,0.22181577]
[1743977519002,0.00030283,79067.0,79066.0,0.12290297]
[1743977519145,0.00030283,79067.0,79066.0,0.13554997]
[1743977519345,0.00530283,79067.0,79066.0,0.13654997]
[1743977519548,0.00030283,79067.0,79066.0,0.12390297]
[1743977519754,0.00030283,79067.0,79066.0,0.18076627]
[1743977520209,0.00030283,79067.0,79066.0,0.17676627]
[1743977520445,0.00030283,79067.0,79066.0,0.19130712]
[1743977520658,0.00030283,79067.0,79066.0,0.19030712]
[1743977521081,0.00030283,79067.0,79065.0,0.012647]
[1743977521082,0.00630283,79067.0,79065.0,0.0025289]
[1743977521334,0.0754204,79066.0,79043.0,0.012651]
[1743977521520,0.025,79060.0,79044.0,0.12290297]
[1743977521728,0.60636602,79060.0,79045.0,0.0135554]
[1743977521939,0.0456,79066.0,79062.0,0.012648]
[1743977522067,0.0456,79066.0,79065.0,0.012647]
[1743977522272,0.0456,79066.0,79065.0,0.15009082]
[1743977522513,0.00030283,79067.0,79066.0,0.28014085]
[1743977522714,0.00030283,79067.0,79066.0,0.40304382]
[1743977523842,0.00030283,79067.0,79066.0,0.13744382]
[1743977524216,0.00030283,79067.0,79031.0,0.00965559]
[1743977524418,0.0718,79059.0,79046.0,0.12290297]
[1743977524623,0.28808,79058.0,79046.0,0.12290297]
[1743977524826,0.28808,79058.0,79049.0,0.01265]
[1743977525027,0.28808,79058.0,79050.0,0.12290297]
[1743977525608,0.28808,79058.0,79046.0,0.0122903]
[1743977525813,0.025,79054.0,79047.0,0.12290297]
[1743977526016,0.28808,79058.0,79048.0,0.01265]
[1743977526185,0.005,79058.0,79057.0,0.012649]
[1743977526388,0.005,79058.0,79057.0,0.15009282]
[1743977526594,0.00030283,79067.0,79066.0,0.02718785]
[1743977526852,0.00030283,79067.0,79066.0,0.15009082]
[1743977527165,0.00030283,79067.0,79066.0,0.1676295]
[1743977527691,0.00030283,79067.0,79066.0,0.14044165]
[1743977527916,0.00030283,79067.0,79066.0,0.12290297]
[1743977528540,0.05517458,79067.0,79066.0,0.12290297]
[1743977528742,0.02530283,79067.0,79066.0,0.12290297]
[1743977528960,0.05517458,79067.0,79016.0,0.26479971]
[1743977529160,0.025,79053.0,79038.0,0.12290297]
[1743977529503,0.00530283,79067.0,79064.0,0.252959]
[1743977529687,0.00530283,79067.0,79065.0,0.13744382]
[1743977529688,0.02987175,79066.0,79065.0,0.13744382]
[1743977531030,0.02987175,79066.0,79065.0,0.12290297]
[1743977531231,0.00030283,79067.0,79066.0,0.01454085]
[1743977531434,0.00030283,79067.0,79066.0,0.40304382]
[1743977531605,0.00030283,79067.0,79066.0,0.4458778]
[1743977531819,0.00030283,79067.0,79066.0,0.46941293]
[1743977532019,0.00030283,79067.0,79066.0,0.16097895]
[1743977532219,0.00030283,79067.0,79066.0,0.13744382]
[1743977532397,0.00030283,79067.0,79066.0,0.39039682]
[1743977532398,0.00530283,79067.0,79066.0,0.39039682]
[1743977532600,0.00030283,79067.0,79066.0,0.40304382]
[1743977533119,0.00530283,79067.0,79066.0,0.40304382]
[1743977533326,0.00530283,79067.0,79066.0,0.52002239]
[1743977533737,0.01030283,79067.0,79066.0,0.52102239]
[1743977534945,0.00530283,79067.0,79066.0,0.52002239]
[1743977535149,0.00530283,79067.0,79066.0,0.53181059]
[1743977535346,0.01130283,79067.0,79066.0,0.53181059]
[1743977535691,0.00530283,79067.0,79066.0,0.53181059]
[1743977535889,0.00030283,79067.0,79066.0,0.53181059]
[1743977536093,0.01130283,79067.0,79066.0,0.53181059]
[1743977536424,0.00630283,79067.0,79066.0,0.53181059]
[1743977536631,0.00530283,79067.0,79066.0,0.53181059]
[1743977536835,0.01130283,79067.0,79066.0,0.53181059]
[1743977537038,0.00630283,79067.0,79066.0,0.53181059]
[1743977537288,0.01130283,79067.0,79066.0,0.53181059]
[1743977538594,0.00630283,79067.0,79066.0,0.53181059]
[1743977538838,0.00030283,79067.0,79066.0,0.25166974]
[1743977539012,0.00530283,79067.0,79066.0,0.15824306]
[1743977539215,0.00530283,79067.0,79066.0,0.15924306]
[1743977539637,0.00530283,79067.0,79066.0,0.17278391]
[1743977539794,0.00530283,79067.0,79066.0,0.2330639]
[1743977540132,0.00530283,79067.0,79066.0,0.2350639]
[1743977540529,0.00530283,79067.0,79066.0,0.24451656]
[1743977540751,0.00530283,79067.0,79066.0,0.2224169]
[1743977540960,0.00530283,79067.0,79066.0,0.16024306]
[1743977541365,0.00530283,79067.0,79066.0,0.17478391]
[1743977541827,0.00530283,79067.0,79066.0,0.42859571]
[1743977542040,0.00030283,79067.0,79066.0,0.42659571]
[1743977542280,0.01030283,79067.0,79066.0,0.49982579]
[1743977542482,0.01030283,79067.0,79066.0,0.5124444]
[1743977542910,0.01030283,79067.0,79066.0,0.49982579]
[1743977543107,0.01030283,79067.0,79066.0,0.52346311]
[1743977543487,0.00530283,79067.0,79066.0,0.52246311]
[1743977543689,0.00030283,79067.0,79066.0,0.52246311]
[1743977543855,0.00530283,79067.0,79066.0,0.52246311]
[1743977544065,0.00530283,79067.0,79066.0,0.87508172]
[1743977544285,0.00530283,79067.0,79066.0,0.54453652]
[1743977544487,0.01030283,79067.0,79066.0,0.55735355]
[1743977544994,0.01030283,79067.0,79066.0,0.54473494]
[1743977545428,0.01030283,79067.0,79066.0,0.53528014]
[1743977545629,0.00530283,79067.0,79066.0,0.51973929]
[1743977545988,0.01130283,79067.0,79066.0,0.15835732]
[1743977546187,0.01130283,79067.0,79066.0,0.42395732]
[1743977546387,0.00630283,79067.0,79066.0,0.42395732]
[1743977546605,0.00030283,79067.0,79066.0,0.51947445]
[1743977546731,0.00530283,79067.0,79066.0,0.26652145]
[1743977547089,0.00030283,79067.0,79066.0,0.17289817]
[1743977547291,0.00530283,79067.0,79066.0,0.17100432]
[1743977547619,0.01130283,79067.0,79066.0,0.17100432]
[1743977547735,0.01130283,79067.0,79066.0,0.18554517]
[1743977547934,0.01130283,79067.0,79066.0,0.17100432]
[1743977548157,0.01130283,79067.0,79066.0,0.50682855]
[1743977548357,0.01130283,79067.0,79066.0,0.51947555]
[1743977548558,0.01130283,79067.0,79066.0,0.5340164]
[1743977549923,0.01130283,79067.0,79066.0,0.2684164]
[1743977550128,0.01130283,79067.0,79066.0,0.5340164]
[1743977550319,0.03630283,79067.0,79066.0,0.15835732]
[1743977550550,0.45539387,79067.0,79066.0,0.03545435]
[1743977550752,0.025,79053.0,79034.0,0.012652]
[1743977550913,0.27884,79052.0,79038.0,0.012652]
[1743977551119,0.34,79051.0,79039.0,0.12290297]
[1743977551323,0.025,79041.0,79039.0,0.13519327]
[1743977551502,0.365,79049.0,79039.0,0.13519327]
[1743977551703,0.025,79042.0,79039.0,0.12290297]
[1743977551943,0.02999104,79041.0,79039.0,0.12290297]
[1743977552116,0.02999104,79041.0,79040.0,0.00253011]
[1743977552298,0.4156,79092.0,79061.0,0.01454085]
[1743977552506,0.01030283,79067.0,79066.0,0.2656]
[1743977552784,0.025,79045.0,79041.0,0.0094586]
[1743977553014,0.025,79042.0,79041.0,0.12290297]
[1743977553208,0.025,79040.0,79034.0,0.2533884]
[1743977553403,0.025,79040.0,79036.0,0.012652]
[1743977553641,0.025,79040.0,79037.0,0.12290297]
[1743977553889,0.025,79042.0,79041.0,0.265684]
[1743977554101,0.0484,79051.0,79048.0,0.01265]
[1743977554300,0.025,79060.0,79054.0,0.012649]
[1743977554508,0.02513551,79060.0,79056.0,0.01454085]
[1743977554705,0.02513551,79060.0,79058.0,0.01454085]
[1743977554869,0.02513551,79060.0,79059.0,0.13744382]
[1743977555404,0.02513551,79060.0,79046.0,0.265666]
[1743977555611,0.025,79054.0,79049.0,0.01454085]
[1743977555787,0.025,79054.0,79050.0,0.12290297]
[1743977555990,0.025,79057.0,79050.0,0.45650897]
[1743977556192,0.00513551,79060.0,79059.0,0.01454085]
[1743977556391,0.00513551,79060.0,79059.0,0.13744382]
[1743977556392,0.00013551,79060.0,79059.0,0.13744382]
[1743977556790,0.025,79040.0,79018.0,0.253104]
[1743977556968,0.27696,79039.0,79035.0,0.12290297]
[1743977558137,0.005,79040.0,79038.0,0.39048582]
[1743977558312,0.005,79040.0,79039.0,0.15009482]
[1743977559482,0.30296,79054.0,79043.0,0.012651]
[1743977559634,0.02980371,79053.0,79044.0,0.13744382]
[1743977559833,0.025,79045.0,79044.0,0.13744382]
[1743977560033,0.365,79053.0,79044.0,0.1511882]
[1743977560221,0.025,79045.0,79044.0,0.1511882]
[1743977560661,0.34,79053.0,79046.0,0.01454085]
[1743977560863,0.02980371,79052.0,79047.0,0.12290297]
[1743977561175,0.34,79053.0,79048.0,0.01454085]
[1743977561397,0.27796,79054.0,79050.0,0.01454085]
[1743977561523,0.02980371,79052.0,79051.0,0.13744382]
[1743977561724,0.28296,79054.0,79052.0,0.01454085]
[1743977561946,0.27796,79054.0,79053.0,0.13744382]
[1743977562480,0.27796,79054.0,79014.0,0.34927874]
[1743977562481,0.025,79042.0,79030.0,0.012653]
[1743977562690,0.4156,79053.0,79043.0,0.012651]
[1743977562855,0.4156,79053.0,79044.0,0.13772347]
[1743977563256,0.005,79054.0,79046.0,0.253015]
[1743977563460,0.03,79054.0,79047.0,0.13744382]
[1743977563686,0.03,79054.0,79049.0,0.01454085]
[1743977563885,0.03,79054.0,79051.0,0.01454085]
[1743977564116,0.005,79053.0,79052.0,0.12290297]
[1743977564247,0.03,79053.0,79052.0,0.12290297]
[1743977564455,0.00013551,79060.0,79052.0,0.12290297]
[1743977564456,0.025,79055.0,79052.0,0.12290297]
[1743977564659,0.005,79054.0,79053.0,0.40308682]
[1743977565054,0.00013551,79060.0,79059.0,0.28016385]
[1743977565275,0.00013551,79060.0,79059.0,0.4965006]
[1743977565473,0.00013551,79060.0,79059.0,0.12290297]
[1743977565678,0.05493922,79060.0,79059.0,0.12290297]
[1743977565878,0.02993922,79060.0,79059.0,0.40306682]
[1743977566529,0.02993922,79060.0,79059.0,0.13744382]
[1743977566754,0.02993922,79060.0,79051.0,0.253]
[1743977566755,0.025,79056.0,79051.0,0.253]
[1743977566924,0.005,79054.0,79052.0,0.17476857]
[1743977567121,0.025,79056.0,79053.0,0.01454085]
[1743977567371,0.025,79056.0,79054.0,0.12290297]
[1743977567780,0.025,79055.0,79054.0,0.12290297]
[1743977567990,0.025,79047.0,79036.0,0.012652]
[1743977568235,0.0483,79055.0,79051.0,0.01265]
[1743977568236,0.005,79054.0,79051.0,0.01265]
[1743977568452,0.025,79056.0,79053.0,0.26753485]
[1743977568657,0.00013551,79060.0,79058.0,0.265625]
[1743977568857,0.00013551,79060.0,79059.0,0.13997328]
[1743977569075,0.00013551,79060.0,79059.0,0.13744382]
[1743977569304,0.00013551,79060.0,79047.0,0.01454085]
[1743977569510,0.025,79053.0,79049.0,0.01454085]
[1743977569711,0.00013551,79060.0,79059.0,0.012648]
[1743977569913,0.00013551,79060.0,79059.0,0.15009182]
[1743977570571,0.00013551,79060.0,79059.0,0.49009182]
[1743977570975,0.00513551,79060.0,79059.0,0.49009182]
[1743977571352,0.01013551,79060.0,79059.0,0.49009182]
[1743977571558,0.01013551,79060.0,79059.0,0.6129895]
[1743977571559,0.00513551,79060.0,79059.0,0.6129895]
[1743977571877,0.00013551,79060.0,79059.0,0.6129895]
[1743977572073,0.00013551,79060.0,79059.0,0.2729895]
[1743977572282,0.00013551,79060.0,79059.0,0.001]
[1743977572283,0.63937551,79060.0,79059.0,0.001]
[1743977572642,0.025,79041.0,79022.0,0.253092]
[1743977572848,0.025,79035.0,79021.0,0.012654]
[1743977573042,0.30016,79035.0,79020.0,0.265755]
[1743977573311,0.30016,79035.0,79021.0,0.012654]
[1743977573834,0.64016,79035.0,79021.0,0.012654]
[1743977573968,0.005,79035.0,79034.0,0.12323737]
[1743977574169,0.005,79035.0,79034.0,0.41580896]
[1743977574591,0.0398882,79035.0,79034.0,0.41580896]
[1743977575548,0.01,79035.0,79034.0,0.41580896]
[1743977575803,0.0002468,79072.0,79066.0,0.2656]
[1743977575923,0.0002468,79072.0,79066.0,0.40304382]
[1743977576139,0.00030283,79067.0,79066.0,0.2561667]
[1743977576552,0.00030283,79067.0,79066.0,0.15009082]
[1743977576980,0.0002468,79072.0,79066.0,0.15009082]
[1743977576981,0.0001673,79090.0,79067.0,0.01454085]
[1743977577187,0.10997656,79087.0,79077.0,0.40300682]
[1743977578276,0.0051673,79078.0,79077.0,0.40300682]
[1743977578684,0.0001673,79078.0,79077.0,0.41562543]
[1743977579027,0.0051673,79078.0,79077.0,0.41562543]
[1743977579808,0.0101673,79078.0,79077.0,0.40400682]
[1743977579944,0.0051673,79078.0,79077.0,0.4965221]
[1743977580154,0.0001673,79078.0,79077.0,0.50914071]
[1743977580372,0.0051673,79078.0,79077.0,0.51014071]
[1743977580567,0.0001673,79078.0,79077.0,0.50914071]
[1743977580829,0.0001673,79078.0,79077.0,0.21641825]
[1743977581032,0.0051673,79078.0,79077.0,0.23006325]
[1743977581363,0.0101673,79078.0,79077.0,0.2456041]
[1743977581643,0.0051673,79078.0,79077.0,0.2446041]
[1743977582073,0.0101673,79078.0,79077.0,0.23106325]
[1743977582515,0.0101673,79078.0,79077.0,0.21841825]
[1743977582737,0.0351673,79078.0,79077.0,0.12490297]
[1743977582945,0.0351673,79078.0,79064.0,0.012647]
[1743977582946,0.86770451,79078.0,79054.0,0.265637]
[1743977583200,0.025,79050.0,79048.0,0.253009]
[1743977583384,0.2768,79049.0,79048.0,0.253009]
[1743977583529,0.2768,79049.0,79048.0,0.37591197]
[1743977583731,0.30693721,79049.0,79048.0,0.38856197]
[1743977583959,0.03013721,79049.0,79048.0,0.38856197]
[1743977584132,0.03013721,79049.0,79048.0,0.49763707]
[1743977584475,0.27652,79063.0,79062.0,0.28015485]
[1743977584817,0.0469673,79078.0,79077.0,0.265563]
[1743977584818,0.0001673,79078.0,79077.0,0.265563]
[1743977585034,0.0001673,79078.0,79077.0,0.40300682]
[1743977585212,0.0001673,79078.0,79077.0,0.521715]
[1743977586794,0.0051673,79078.0,79077.0,0.521715]
[1743977587565,0.0051673,79078.0,79077.0,0.13744382]
[1743977587767,0.0001673,79078.0,79077.0,0.15008882]
[1743977587985,0.0101673,79078.0,79077.0,0.15008882]
[1743977588252,0.0101673,79078.0,79077.0,0.15261747]
[1743977588425,0.0051673,79078.0,79077.0,0.15261747]
[1743977588671,0.0051673,79078.0,79077.0,0.24375777]
[1743977589191,0.0001673,79078.0,79077.0,0.24375777]
[1743977589416,3e-07,79079.0,79078.0,0.28009985]
[1743977589655,1e-07,79082.0,79081.0,0.26555]
[1743977589898,0.0001673,79090.0,79081.0,0.26555]
[1743977589899,4e-07,79090.0,79089.0,0.265522]
[1743977590156,7e-07,79093.0,79092.0,0.28005385]
[1743977590397,7e-07,79093.0,79092.0,0.40295682]
[1743977590643,0.00013618,79093.0,79092.0,0.40295682]
[1743977591131,8e-08,79099.0,79098.0,0.28003285]
[1743977591374,8e-08,79099.0,79098.0,0.47108822]
[1743977591615,8e-08,79099.0,79098.0,0.48370683]
[1743977591875,8e-08,79099.0,79098.0,0.82370683]
[1743977592117,0.4156,79138.0,79109.0,0.01264]
[1743977592118,8e-07,79110.0,79109.0,0.01264]
[1743977592353,0.05997736,79116.0,79115.0,0.27997585]
[1743977592589,0.05997736,79116.0,79115.0,0.40287882]
[1743977593345,0.025,79134.0,79131.0,0.01454085]
[1743977593586,0.025,79132.0,79131.0,0.02717785]
[1743977593845,0.00045178,79134.0,79133.0,0.02717685]
[1743977594080,0.00045178,79134.0,79133.0,0.2447031]
[1743977594325,0.2788,79149.0,79133.0,0.2447031]
[1743977594326,0.01770354,79141.0,79140.0,0.265351]
[1743977594609,0.4156,79151.0,79150.0,0.012634]
[1743977594807,0.025,79149.0,79148.0,0.01454085]
[1743977595043,0.025,79149.0,79148.0,0.13744382]
[1743977595286,0.025,79149.0,79115.0,0.003]
[1743977595287,0.025,79125.0,79115.0,0.003]
[1743977595533,0.33618451,79124.0,79118.0,0.12290297]
[1743977595777,0.33618451,79124.0,79119.0,0.0151181]
[1743977596051,0.33618451,79124.0,79120.0,0.12290297]
[1743977596499,0.02489682,79121.0,79120.0,0.12290297]
[1743977596712,0.02489682,79121.0,79120.0,0.13744382]
[1743977596934,0.0552167,79121.0,79120.0,0.13744382]
[1743977597161,0.0552167,79121.0,79120.0,0.2068026]
[1743977597866,0.0602167,79121.0,79120.0,0.2068026]
[1743977598788,0.03531988,79121.0,79120.0,0.2194416]
[1743977598929,0.04031988,79121.0,79120.0,0.2194416]
[1743977599383,0.01013537,79121.0,79120.0,0.2194416]
[1743977600554,0.00513537,79121.0,79120.0,0.2194416]
[1743977601188,0.03003219,79121.0,79120.0,0.12290297]
[1743977601388,0.30907219,79121.0,79120.0,0.12290297]
[1743977601590,0.3442567,79121.0,79120.0,0.12290297]
[1743977601962,0.02489682,79100.0,79087.0,0.252885]
[1743977602165,0.02489682,79093.0,79092.0,0.13554597]
[1743977602316,0.30417682,79093.0,79061.0,0.014648]
[1743977602528,0.49088133,79092.0,79064.0,0.252958]
[1743977602720,0.02489682,79065.0,79061.0,0.002]
[1743977602911,0.02489682,79063.0,79062.0,0.15219547]
[1743977603351,0.05508133,79063.0,79062.0,0.12290297]
[1743977603553,0.44148133,79063.0,79062.0,0.00045178]
[1743977603754,0.48938133,79063.0,79062.0,0.00045178]
[1743977603952,0.48938133,79063.0,79061.0,0.002]
[1743977603953,0.36489682,79062.0,79061.0,0.002]
[1743977604153,0.39511259,79062.0,79061.0,0.00213548]